bitfinex-derivatives/quotes_SOLF0:USTF0_20250113
["timestamp","ask_amount","ask_price","bid_price","bid_amount"]
[1736764675842,6.48,178.76,178.65,21.61930226]
[1736764676043,9.2795,178.76,178.7,2.8002]
[1736764676850,2.7997,178.75,178.69,2.8004]
[1736764677047,2.7997,178.75,178.65,21.61930226]
[1736764677345,6.48,178.76,178.65,21.61930226]
[1736764678045,6.48,178.76,178.68,2.8006]
[1736764678245,6.48,178.76,178.65,21.61930226]
[1736764678848,6.48,178.76,178.72,2.7999]
[1736764679349,2.7997,178.75,178.7,2.8002]
[1736764679549,6.48,178.76,178.68,21.61930226]
[1736764681253,9.2795,178.76,178.71,2.8001]
[1736764681551,6.48,178.76,178.68,21.61930226]
[1736764682953,6.48,178.76,178.65,21.61930226]
[1736764683252,0.84121777,178.75,178.64,1.676]
[1736764684048,2.8,178.73,178.68,2.8006]
[1736764684248,6.48,178.76,178.64,1.676]
[1736764684565,2.8007,178.68,178.64,4.4773]
[1736764684855,2.8007,178.68,178.64,1.676]
[1736764685245,8.26730536,178.74,178.63,4.4041]
[1736764685451,6.46,178.68,178.57,3.222]
[1736764685755,6.46,178.68,178.57,4.8194]
[1736764686345,6.46,178.68,178.59,21.61930226]
[1736764686545,6.46,178.68,178.64,2.8012]
[1736764688662,6.46,178.68,178.65,2.8011]
[1736764688861,112.34249996,178.77,178.62,21.61930226]
[1736764689066,98.00320351,178.76,178.65,21.61930226]
[1736764689264,0.84000581,178.75,178.66,5.0446]
[1736764690267,6.44,178.76,178.66,5.0446]
[1736764690462,6.44,178.76,178.71,2.8002]
[1736764690967,9.2395,178.76,178.71,2.8002]
[1736764691762,6.44,178.76,178.66,5.0446]
[1736764691964,6.44,178.76,178.68,21.61930226]
[1736764692966,6.44,178.76,178.72,2.8]
[1736764693265,6.44,178.76,178.68,21.61930226]
[1736764693469,2.7996,178.75,178.7,2.8002]
[1736764693659,6.44,178.76,178.68,21.61930226]
[1736764694859,111.86558499,178.82,178.68,21.61930226]
[1736764695061,111.86558499,178.82,178.71,21.61930226]
[1736764695062,7.23996027,178.81,178.71,21.61930226]
[1736764695261,6.4,178.81,178.71,21.61930226]
[1736764696371,92.2793977,178.85,178.74,21.61930226]
[1736764696572,15.48881148,178.84,178.75,1.5606]
[1736764696769,14.64846526,178.84,178.75,4.8585]
[1736764696972,17.44676526,178.84,178.8,2.7987]
[1736764697165,9.1983,178.84,178.8,2.7987]
[1736764698172,2.7986,178.82,178.75,4.8585]
[1736764698773,9.1786,178.82,178.77,2.7993]
[1736764699373,6.38,178.82,178.68,21.61930226]
[1736764699674,2.5439932,178.81,178.68,21.61930226]
[1736764699873,2.7996,178.76,178.71,2.8001]
[1736764700069,3.1625,178.81,178.68,21.61930226]
[1736764700276,0.84020859,178.8,178.68,21.61930226]
[1736764700978,0.84020859,178.8,178.66,3.2282]
[1736764700979,6.38,178.79,178.71,21.61930226]
[1736764701171,6.38,178.79,178.75,2.7995]
[1736764702474,9.179,178.79,178.74,2.7997]
[1736764702970,2.7993,178.77,178.72,2.7999]
[1736764703174,6.38,178.79,178.68,21.61930226]
[1736764703375,0.84019744,178.78,178.68,21.61930226]
[1736764703575,6.38,178.79,178.68,21.61930226]
[1736764703777,32.75575769,178.79,178.68,21.61930226]
[1736764704075,24.48810368,178.79,178.68,21.61930226]
[1736764704276,27.28720368,178.79,178.74,2.7996]
[1736764704479,24.48810368,178.79,178.74,2.7996]
[1736764704679,97.1031977,178.79,178.74,2.7996]
[1736764706380,90.7231977,178.79,178.78,2.7991]
[1736764706880,90.7231977,178.79,178.77,2.7993]
[1736764707178,112.34249996,178.84,178.66,3.2282]
[1736764707383,13.54281021,178.8,178.72,2.8]
[1736764707583,0.8401001,178.79,178.69,13.54281021]
[1736764707773,13.54281021,178.77,178.66,3.2282]
[1736764707976,13.54281021,178.74,178.62,73.93863474]
[1736764708170,13.54281021,178.71,178.59,13.54281021]
[1736764708374,6.42,178.73,178.59,13.54281021]
[1736764708674,6.42,178.73,178.65,13.54281021]
[1736764708979,97.1431977,178.73,178.65,13.54281021]
[1736764709182,97.1431977,178.73,178.59,13.54281021]
[1736764709183,0.83960246,178.72,178.59,13.54281021]
[1736764709476,2.801,178.67,178.59,13.54281021]
[1736764709682,90.7231977,178.72,178.64,13.54281021]
[1736764709977,9.10178369,178.71,178.64,13.54281021]
[1736764710275,11.06241362,178.71,178.65,2.8012]
[1736764710479,21.80502383,178.71,178.58,13.54281021]
[1736764710682,0.83952125,178.7,178.58,13.54281021]
[1736764710981,2.8007,178.68,178.62,2.8015]
[1736764711184,0.83952125,178.7,178.58,13.54281021]
[1736764711185,13.54281021,178.71,178.58,13.54281021]
[1736764711387,0.83951374,178.7,178.58,21.69160623]
[1736764711677,2.8005,178.7,178.63,2.8013]
[1736764713374,3.64009835,178.69,178.63,2.8013]
[1736764713681,8.25707168,178.71,178.61,2.8017]
[1736764713879,0.83936959,178.7,178.61,2.8017]
[1736764714077,2.8008,178.68,178.61,2.8017]
[1736764714572,2.8008,178.67,178.61,2.8017]
[1736764715784,2.8008,178.67,178.62,2.8016]
[1736764720390,2.8005,178.69,178.58,21.69160623]
[1736764720585,8.25707168,178.71,178.61,21.69160623]
[1736764720784,6.38,178.7,178.61,21.69160623]
[1736764721086,6.38,178.71,178.64,21.69160623]
[1736764721490,90.7231977,178.74,178.69,2.8005]
[1736764721685,6.38,178.73,178.65,1.5856]
[1736764722186,6.38,178.73,178.67,21.69160623]
[1736764722380,90.7231977,178.77,178.67,21.69160623]
[1736764722584,7.22034769,178.76,178.66,1.6303]
[1736764722781,2.8005,178.7,178.61,21.69160623]
[1736764723284,9.719999,178.75,178.64,21.69160623]
[1736764723489,3.63987198,178.74,178.64,21.69160623]
[1736764723685,9.1799,178.74,178.64,21.69160623]
[1736764724084,2.8,178.73,178.67,2.8008]
[1736764724284,6.38,178.74,178.61,21.69160623]
[1736764724485,0.84006462,178.73,178.61,21.69160623]
[1736764724687,2.8,178.73,178.67,2.8007]
[1736764724886,6.38,178.74,178.67,2.8007]
[1736764725081,6.38,178.74,178.62,21.69160623]
[1736764725388,2.8004,178.7,178.65,2.8011]
[1736764725982,2.8007,178.69,178.62,21.69160623]
[1736764726383,6.38,178.73,178.62,21.69160623]
[1736764726585,0.84002424,178.72,178.59,21.69160623]
[1736764727092,2.8009,178.67,178.62,2.8015]
[1736764727793,2.8009,178.67,178.63,2.8014]
[1736764729089,29.95010523,178.72,178.61,2.8017]
[1736764729394,21.69160623,178.69,178.57,1.6303]
[1736764729598,2.52621279,178.68,178.57,4.4326]
[1736764729788,2.8016,178.63,178.57,4.4326]
[1736764729983,9.1816,178.63,178.57,4.4326]
[1736764730189,6.38,178.63,178.57,4.4326]
[1736764730389,6.38,178.63,178.57,1.6303]
[1736764730595,6.38,178.63,178.5,8.95742302]
[1736764730785,6.38,178.63,178.5,21.69160623]
[1736764730986,2.8021,178.59,178.5,21.69160623]
[1736764731390,28.07160623,178.63,178.5,21.69160623]
[1736764731391,13.5715106,178.61,178.5,13.5715106]
[1736764731594,2.8023,178.58,178.54,2.8028]
[1736764731904,6.38,178.63,178.53,13.5715106]
[1736764732197,6.38,178.63,178.56,13.5715106]
[1736764732399,6.38,178.63,178.59,13.5715106]
[1736764732599,6.38,178.63,178.62,2.8016]
[1736764732896,6.38,178.63,178.59,13.5715106]
[1736764733195,6.38,178.63,178.61,2.8017]
[1736764733388,1.6866,178.68,178.59,13.5715106]
[1736764733590,6.38,178.66,178.59,13.5715106]
[1736764733788,6.38,178.66,178.65,2.8012]
[1736764734188,90.7231977,178.72,178.62,13.5715106]
[1736764734395,97.1031977,178.72,178.66,2.8009]
[1736764734594,97.1031977,178.72,178.65,13.5715106]
[1736764735098,6.38,178.72,178.65,13.5715106]
[1736764735491,6.38,178.73,178.65,13.5715106]
[1736764735691,2.8,178.73,178.68,2.8007]
[1736764736093,2.8,178.73,178.65,13.5715106]
[1736764736992,2.8,178.73,178.67,2.8007]
[1736764737496,19.9315106,178.74,178.62,13.5715106]
[1736764737695,0.83966971,178.73,178.62,13.5715106]
[1736764737896,2.8003,178.71,178.62,13.5715106]
[1736764738199,2.8003,178.71,178.65,2.801]
[1736764739002,108.8012008,178.73,178.62,13.5715106]
[1736764739198,2.8001,178.72,178.62,13.5715106]
[1736764739401,108.8012008,178.73,178.62,13.5715106]
[1736764739604,0.83957205,178.72,178.62,13.5715106]
[1736764739805,2.8005,178.7,178.65,2.801]
[1736764739998,2.8005,178.7,178.6,3.235]
[1736764739999,13.5715106,178.71,178.6,3.235]
[1736764740598,13.5715106,178.68,178.57,1.6494]
[1736764740805,98.96892566,178.72,178.56,13.5715106]
[1736764740806,13.5715106,178.65,178.56,13.5715106]
[1736764741000,6.34,178.64,178.59,13.5715106]
[1736764741206,6.34,178.64,178.63,2.8015]
[1736764742002,6.34,178.64,178.59,13.5715106]
[1736764742205,6.34,178.64,178.56,13.5715106]
[1736764742505,6.34,178.64,178.6,2.8019]
[1736764743511,6.34,178.64,178.56,13.5715106]
[1736764743802,6.34,178.64,178.61,2.8017]
[1736764745003,6.34,178.64,178.56,13.5715106]
[1736764745206,115.2176665,178.68,178.6,13.5715106]
[1736764745704,115.2176665,178.68,178.64,2.8012]
[1736764746104,2.8008,178.67,178.63,2.8014]
[1736764746315,6.38,178.68,178.6,13.5715106]
[1736764746906,14.64627905,178.68,178.6,13.5715106]
[1736764747210,2.8013,178.65,178.61,2.8018]
[1736764747411,14.64627905,178.68,178.57,13.5715106]
[1736764747613,2.8013,178.64,178.59,2.8021]
[1736764747905,13.5715106,178.66,178.55,13.5715106]
[1736764748111,11.06717905,178.67,178.62,2.8015]
[1736764748611,2.801,178.66,178.61,2.8018]
[1736764749413,2.8013,178.65,178.6,2.8019]
[1736764749616,115.25332202,178.68,178.58,13.5715106]
[1736764750306,108.87332202,178.68,178.61,13.5715106]
[1736764751012,108.87332202,178.68,178.58,13.5715106]
[1736764751213,13.5715106,178.69,178.58,13.5715106]
[1736764751408,2.8008,178.68,178.63,2.8013]
[1736764751604,13.5715106,178.69,178.58,13.5715106]
[1736764751808,9.12722704,178.68,178.55,13.5715106]
[1736764752016,2.8012,178.65,178.55,13.5715106]
[1736764752309,18.15012432,178.68,178.58,13.5715106]
[1736764752507,8.28689626,178.67,178.58,13.5715106]
[1736764752707,8.28689626,178.67,178.6,2.8018]
[1736764752911,8.28689626,178.67,178.58,13.5715106]
[1736764753214,20.95082432,178.68,178.63,2.8013]
[1736764753415,20.95082432,178.68,178.58,13.5715106]
[1736764753814,2.8007,178.68,178.58,13.5715106]
[1736764754213,97.0831977,178.7,178.58,13.5715106]
[1736764754415,2.8008,178.67,178.63,2.8013]
[1736764756416,9.1407,178.68,178.63,2.8013]
[1736764757219,9.1407,178.68,178.64,2.8013]
[1736764757421,17.43756786,178.68,178.58,13.5715106]
[1736764757822,17.43756786,178.68,178.63,2.8014]
[1736764758419,17.43756786,178.68,178.64,2.8013]
[1736764759419,13.5715106,178.67,178.55,13.5715106]
[1736764759624,13.5715106,178.61,178.53,4.8493]
[1736764760024,6.32,178.6,178.56,2.8024]
[1736764760223,6.32,178.6,178.53,4.8493]
[1736764760826,6.32,178.6,178.55,13.5715106]
[1736764761025,6.32,178.6,178.59,2.8021]
[1736764761225,90.7231977,178.64,178.55,13.5715106]
[1736764761428,90.7231977,178.64,178.53,4.8493]
[1736764761628,90.7231977,178.64,178.59,2.802]
[1736764761629,93.5245977,178.64,178.59,2.802]
[1736764761927,2.8014,178.64,178.55,13.5715106]
[1736764762323,2.8015,178.63,178.55,13.5715106]
[1736764763023,2.8015,178.63,178.59,2.8019]
[1736764763524,2.8018,178.61,178.57,2.8023]
[1736764763723,13.5715106,178.63,178.53,4.8493]
[1736764764429,2.8017,178.62,178.57,2.8023]
[1736764765723,13.5715106,178.63,178.52,8.95651754]
[1736764765922,16.3734106,178.6,178.55,2.8027]
[1736764766319,16.3734106,178.6,178.56,2.8025]
[1736764766626,90.7231977,178.62,178.57,13.5715106]
[1736764766922,90.7231977,178.62,178.61,2.8018]
[1736764767523,90.7231977,178.66,178.6,13.5715106]
[1736764767827,90.7231977,178.66,178.63,2.8013]
[1736764768530,99.8838977,178.68,178.63,2.8013]
[1736764769029,97.0831977,178.68,178.64,2.8013]
[1736764769221,90.7231977,178.68,178.6,13.5715106]
[1736764769423,90.7231977,178.68,178.63,13.5715106]
[1736764769731,90.7231977,178.69,178.68,2.8007]
[1736764770629,90.7231977,178.74,178.66,13.5715106]
[1736764770824,90.7231977,178.74,178.69,13.5715106]
[1736764771032,90.7231977,178.74,178.73,2.7999]
[1736764771430,90.7231977,178.76,178.72,13.5715106]
[1736764771628,90.7231977,178.76,178.75,16.3711106]
[1736764771824,88.1565977,178.76,178.75,16.3711106]
[1736764772030,24.21751359,178.79,178.75,13.5715106]
[1736764772226,91.81871955,178.82,178.78,13.5715106]
[1736764772531,55.44111955,178.82,178.81,13.5715106]
[1736764772729,9.85733315,178.84,178.83,2.7983]
[1736764772929,3.1715,178.91,178.81,13.5715106]
[1736764773134,3.1715,178.91,178.84,13.5715106]
[1736764773530,3.1715,178.91,178.85,2.798]
[1736764773732,3.1715,178.91,178.84,13.5715106]
[1736764774532,7.18229582,178.9,178.78,7.67989056]
[1736764774723,3.1715,178.91,178.83,13.5715106]
[1736764775127,3.1715,178.91,178.87,2.7977]
[1736764775330,1.6025,178.96,178.85,21.62117945]
[1736764775631,1.6025,178.96,178.89,2.7973]
[1736764775826,1.6025,178.96,178.85,21.62117945]
[1736764777127,2.7966,178.94,178.87,2.7975]
[1736764777635,2.7968,178.93,178.86,2.7979]
[1736764777933,1.5841,178.93,178.79,27.98117945]
[1736764778432,2.7972,178.9,178.84,2.7982]
[1736764778832,2.797,178.92,178.84,2.7982]
[1736764780029,4.4598,178.91,178.84,2.7982]
[1736764780436,23.28387945,178.91,178.82,2.7983]
[1736764780627,6.34,178.9,178.82,2.7983]
[1736764780832,2.7977,178.87,178.74,55.38064417]
[1736764781027,21.62117945,178.88,178.79,2.7989]
[1736764781227,1.5799,178.87,178.73,21.62117945]
[1736764781432,4.3778,178.87,178.73,21.62117945]
[1736764781632,4.3778,178.87,178.79,2.7988]
[1736764781836,4.3778,178.87,178.73,21.62117945]
[1736764782839,4.3778,178.87,178.8,2.7988]
[1736764783139,1.5799,178.87,178.73,21.62117945]
[1736764783338,21.62117945,178.82,178.71,30.71956225]
[1736764783537,1.5799,178.87,178.74,55.24783947]
[1736764783938,1.5799,178.87,178.8,2.7986]
[1736764784134,1.5799,178.87,178.73,21.62117945]
[1736764784341,6.34,178.9,178.76,21.62117945]
[1736764785541,6.34,178.9,178.74,35.31462806]
[1736764785742,2.47528819,178.89,178.75,30.71956225]
[1736764785941,2.798,178.86,178.79,2.799]
[1736764786338,1.6323,178.89,178.79,2.799]
[1736764786537,2.7979,178.86,178.79,2.7988]
[1736764786741,2.7979,178.86,178.73,14.03989056]
[1736764787937,2.7979,178.86,178.81,2.7986]
[1736764788141,2.7977,178.88,178.74,27.63265737]
[1736764788344,1.6323,178.89,178.74,27.63265737]
[1736764788639,1.6323,178.89,178.77,21.62117945]
[1736764789041,1.6323,178.89,178.84,2.7981]
[1736764789645,1.6323,178.89,178.77,29.30107001]
[1736764789849,1.6323,178.89,178.85,2.798]
[1736764791249,4.4297,178.89,178.85,2.798]
[1736764791745,1.6323,178.89,178.78,7.67989056]
[1736764792146,4.4297,178.89,178.84,2.7981]
[1736764792547,1.6323,178.89,178.77,7.67989056]
[1736764792747,6.34,178.9,178.79,21.62117945]
[1736764793343,9.1373,178.9,178.79,21.62117945]
[1736764794350,9.1373,178.9,178.85,2.7979]
[1736764796144,9.1373,178.9,178.86,2.7978]
[1736764796752,6.34,178.9,178.79,52.3407417]
[1736764797249,21.62117945,178.98,178.85,21.62117945]
[1736764797453,2.7962,178.97,178.92,2.7969]
[1736764797844,13.51428735,178.95,178.83,13.51428735]
[1736764798050,2.7966,178.94,178.89,2.7973]
[1736764798352,13.51428735,178.92,178.84,60.6679118]
[1736764798547,2.7974,178.9,178.84,60.6679118]
[1736764798952,2.7974,178.9,178.85,2.7979]
[1736764800155,16.31178735,178.89,178.83,10.47809056]
[1736764800356,13.51428735,178.86,178.81,7.67989056]
[1736764800652,2.7982,178.85,178.81,7.67989056]
[1736764800852,13.51428735,178.86,178.81,7.67989056]
[1736764801157,13.51428735,178.87,178.8,23.03967169]
[1736764801357,24.85442766,178.88,178.78,7.67989056]
[1736764801852,3.2044,178.88,178.78,7.67989056]
[1736764802054,3.2044,178.88,178.83,2.7983]
[1736764802254,3.2044,178.88,178.79,27.54120249]
[1736764802656,3.2044,178.88,178.81,2.7985]
[1736764802854,3.2044,178.88,178.8,13.57106539]
[1736764803248,2.7978,178.87,178.82,2.7984]
[1736764804659,3.2044,178.88,178.81,62.80533905]
[1736764804852,3.2044,178.88,178.8,92.15868675]
[1736764805661,6.002,178.88,178.84,2.7981]
[1736764805856,6.36,178.9,178.81,480.2049161]
[1736764806356,6.36,178.9,178.81,501.85494376]
[1736764806561,6.36,178.9,178.82,403.92491036]
[1736764806860,6.36,178.9,178.88,2.7975]
[1736764807660,6.36,178.9,178.84,533.01790496]
[1736764808058,6.36,178.9,178.84,554.66793262]
[1736764808359,6.36,178.9,178.85,248.05998312]
[1736764808655,1.6586,178.97,178.85,248.05998312]
[1736764808861,1.6586,178.97,178.88,21.65002766]
[1736764809460,1.6586,178.97,178.86,21.65002766]
[1736764810062,2.7964,178.96,178.92,2.7969]
[1736764810562,2.7954,179.03,178.93,21.65002766]
[1736764811262,6.0512,179.04,178.96,2.7963]
[1736764811464,3.2561,179.04,178.93,21.65002766]
[1736764812061,3.2561,179.04,178.95,7.67989056]
[1736764812366,3.2561,179.04,179.02,2.7954]
[1736764812662,1.6397,179.04,179.02,2.7954]
[1736764813060,1.6397,179.04,178.93,21.65002766]
[1736764814867,1.6397,179.04,179.01,2.7954]
[1736764815062,1.6397,179.04,178.93,21.65002766]
[1736764815262,1.6397,179.04,178.96,21.65002766]
[1736764815567,1.6397,179.04,179.01,2.7954]
[1736764816066,1.6397,179.04,178.96,21.65002766]
[1736764816265,1.6397,179.04,178.98,2.7959]
[1736764816464,1.6397,179.04,178.96,21.65002766]
[1736764816959,4.4349,179.04,178.96,21.65002766]
[1736764817359,4.4349,179.04,178.93,21.65002766]
[1736764817566,4.4349,179.04,178.99,2.7958]
[1736764818968,1.6397,179.04,178.99,2.7958]
[1736764819166,1.6397,179.04,178.88,7.67989056]
[1736764819467,1.6397,179.04,178.9,21.65002766]
[1736764819668,2.7957,179.0,178.96,2.7962]
[1736764820570,1.6397,179.04,178.93,21.65002766]
[1736764821466,2.7954,179.02,178.97,2.796]
[1736764821668,2.7954,179.02,178.93,21.65002766]
[1736764822174,1.6397,179.04,178.93,21.65002766]
[1736764822373,2.7956,179.01,178.9,21.65002766]
[1736764822571,2.7956,179.01,178.96,2.7963]
[1736764822775,4.4349,179.04,178.93,21.65002766]
[1736764822973,2.7952,179.04,178.93,21.65002766]
[1736764823373,2.7952,179.04,179.0,2.7956]
[1736764824876,2.7949,179.05,179.01,2.7955]
[1736764825470,1.7065,179.07,179.01,2.7955]
[1736764825666,1.7065,179.07,178.92,13.50192322]
[1736764825971,2.7956,179.01,178.91,13.50192322]
[1736764826272,13.50192322,179.01,178.91,13.50192322]
[1736764826474,13.50192322,179.01,178.88,44.22148547]
[1736764826672,2.796,178.98,178.94,2.7965]
[1736764827272,2.7962,178.97,178.93,2.7968]
[1736764828774,13.50192322,178.98,178.83,198.32712399]
[1736764828775,2.7967,178.94,178.9,2.7972]
[1736764830275,2.7965,178.95,178.9,2.7972]
[1736764830480,13.50192322,178.98,178.85,13.50192322]
[1736764830681,13.50192322,178.92,178.83,7.71117273]
[1736764830877,13.50192322,178.92,178.86,2.7977]
[1736764831472,2.7974,178.89,178.85,2.798]
[1736764833974,9.117,178.92,178.88,2.7974]
[1736764834378,6.32,178.92,178.89,13.50192322]
[1736764834576,2.7965,178.95,178.9,2.7971]
[1736764834979,2.7965,178.95,178.89,13.50192322]
[1736764835281,2.7963,178.96,178.89,13.50192322]
[1736764835482,2.7963,178.96,178.88,21.61734558]
[1736764836484,2.7963,178.96,178.92,2.7968]
[1736764838583,7.9335,178.99,178.87,21.61734558]
[1736764838785,7.9335,178.99,178.79,5.5978]
[1736764838786,0.84546492,178.98,178.9,21.61734558]
[1736764838984,1.6743,179.0,178.93,21.61734558]
[1736764839184,7.46088155,179.02,178.93,21.61734558]
[1736764839488,7.46088155,179.02,178.96,21.61734558]
[1736764839680,9.1148,179.06,179.02,2.7953]
[1736764840996,2.7948,179.06,179.02,2.7953]
[1736764842387,2.7952,179.04,178.99,2.7958]
[1736764842692,1.6681,179.07,178.99,2.7958]
[1736764842893,0.84581049,179.06,178.92,21.61734558]
[1736764843090,2.7951,179.04,178.99,2.7957]
[1736764844191,2.7951,179.04,179.0,2.7956]
[1736764845195,1.6681,179.07,178.97,2.7961]
[1736764845493,1.6681,179.07,178.98,21.61734558]
[1736764845896,2.794,179.11,179.07,2.7946]
[1736764846092,6.32,179.13,178.92,5.5938]
[1736764846292,0.84633024,179.12,179.01,21.61734558]
[1736764846492,2.7942,179.1,179.05,2.7948]
[1736764846886,0.84630178,179.09,179.01,21.61734558]
[1736764847097,6.32,179.13,179.01,21.61734558]
[1736764847098,6.32,179.13,179.03,2.7952]
[1736764847292,0.84629562,179.12,179.01,21.61734558]
[1736764847692,2.7944,179.09,179.05,2.7949]
[1736764847996,6.32,179.13,179.01,21.61734558]
[1736764848198,0.84638206,179.12,179.01,21.61734558]
[1736764848895,0.84638206,179.12,179.04,21.61734558]
[1736764849097,18.51622855,179.15,179.04,21.61734558]
[1736764849290,2.7937,179.13,179.09,2.7942]
[1736764849492,3.1273,179.15,179.07,21.61734558]
[1736764849692,0.84656417,179.14,179.07,21.61734558]
[1736764849992,1.5391,179.15,179.07,21.61734558]
[1736764851096,1.5391,179.15,179.1,2.794]
[1736764851285,1.5391,179.15,179.07,21.61734558]
[1736764851893,6.32,179.17,179.07,21.61734558]
[1736764852099,2.7933,179.15,179.11,2.7939]
[1736764852490,2.7933,179.15,179.07,21.61734558]
[1736764852491,2.7931,179.17,179.12,2.7937]
[1736764852692,117.57734558,179.28,179.13,21.61734558]
[1736764852898,26.48161579,179.27,179.16,21.61734558]
[1736764853093,0.84622543,179.26,179.19,21.61734558]
[1736764853599,7.47211041,179.29,179.19,21.61734558]
[1736764853901,0.84638069,179.28,179.19,21.61734558]
[1736764854289,3.63788069,179.28,179.22,2.7922]
[1736764854600,0.84620927,179.27,179.22,2.7922]
[1736764855398,2.7915,179.28,179.22,2.7922]
[1736764855998,0.84596209,179.27,179.16,21.61734558]
[1736764856300,0.84596209,179.26,179.1,21.61734558]
[1736764856595,21.61734558,179.24,179.1,21.61734558]
[1736764856799,21.61734558,179.21,179.07,21.61734558]
[1736764856998,7.8927,179.2,179.07,21.61734558]
[1736764857199,9.4998,179.2,179.07,21.61734558]
[1736764857500,2.7929,179.18,179.11,2.7938]
[1736764857899,2.7929,179.18,179.07,21.61734558]
[1736764858200,12.2925,179.2,179.07,21.61734558]
[1736764858399,9.4998,179.2,179.1,21.61734558]
[1736764858595,9.4998,179.2,179.13,2.7936]
[1736764858997,3.1798,179.2,179.1,21.61734558]
[1736764859191,3.1798,179.2,179.12,2.7938]
[1736764859393,3.1798,179.2,179.1,21.61734558]
[1736764859599,2.7931,179.17,179.1,21.61734558]
[1736764859999,3.1798,179.2,179.1,21.61734558]
[1736764860200,3.1798,179.2,179.14,2.7934]
[1736764860400,0.84608511,179.19,179.14,2.7934]
[1736764860601,2.793,179.18,179.11,2.7939]
[1736764860801,3.1798,179.2,179.07,21.61734558]
[1736764861000,0.84606651,179.19,179.07,21.61734558]
[1736764861195,0.84606651,179.19,179.09,2.7943]
[1736764861397,21.61734558,179.18,179.04,21.61734558]
[1736764861599,21.61734558,179.15,179.03,2.7951]
[1736764861803,2.45716651,179.14,179.0,21.61734558]
[1736764862001,2.7945,179.08,179.0,21.61734558]
[1736764862202,6.3,179.13,179.03,2.7952]
[1736764862502,2.7943,179.1,179.03,2.7952]
[1736764862702,6.3,179.13,179.03,2.7952]
[1736764862904,1.5806,179.11,179.03,2.7952]
[1736764863104,1.5806,179.11,179.0,21.61734558]
[1736764863305,1.5806,179.11,179.04,2.795]
[1736764863711,1.5806,179.11,179.0,21.61734558]
[1736764863911,1.5806,179.11,179.03,2.7952]
[1736764864101,1.5806,179.11,179.0,21.61734558]
[1736764864907,1.5806,179.11,178.92,21.61734558]
[1736764864908,1.5806,179.11,178.97,21.61734558]
[1736764865107,21.61734558,179.09,178.94,21.61734558]
[1736764865305,2.7949,179.06,178.94,21.61734558]
[1736764865510,21.61734558,179.09,179.01,2.7955]
[1736764865706,1.5432,179.1,178.97,21.61734558]
[1736764866303,0.84609588,179.09,178.97,21.61734558]
[1736764866508,2.7946,179.07,179.01,2.7954]
[1736764866811,1.5432,179.1,178.97,21.61734558]
[1736764867009,0.84607001,179.09,178.97,21.61734558]
[1736764867209,1.5432,179.1,178.97,21.61734558]
[1736764867410,0.8460751,179.09,178.97,21.61734558]
[1736764867912,0.8460751,179.09,178.99,2.7958]
[1736764868410,0.8460751,179.09,179.0,2.7955]
[1736764868411,2.7947,179.06,179.0,2.7955]
[1736764868609,1.5432,179.1,178.97,21.61734558]
[1736764868809,0.8459011,179.09,178.97,21.61734558]
[1736764869107,2.7944,179.08,179.07,21.61734558]
[1736764869310,153.30722772,179.26,179.07,287.23469116]
[1736764869617,156.54252772,179.26,179.24,21.61734558]
[1736764869817,3.2353,179.26,179.21,21.61734558]
[1736764870213,1.6891,179.29,179.23,2.7921]
[1736764870415,7.43709203,179.37,179.28,21.61734558]
[1736764870614,7.43709203,179.37,179.21,21.61734558]
[1736764870615,6.52,179.36,179.31,21.61734558]
[1736764871514,6.52,179.36,179.28,21.61734558]
[1736764871722,28.13734558,179.36,179.21,21.61734558]
[1736764871921,2.791,179.3,179.21,21.61734558]
[1736764872618,21.61734558,179.33,179.18,21.61734558]
[1736764872823,0.83998252,179.32,179.18,21.61734558]
[1736764873120,2.7915,179.28,179.18,21.61734558]
[1736764873320,6.52,179.27,179.18,21.61734558]
[1736764873725,9.3116,179.27,179.18,21.61734558]
[1736764874120,2.0,179.45,179.25,21.61734558]
[1736764874319,0.8403698,179.44,179.35,21.61734558]
[1736764874526,2.0,179.45,179.35,21.61734558]
[1736764874824,6.58,179.44,179.35,21.61734558]